Workbook

Sheet Main
L1: Population Normal Distribution Average ball weight 250.07 and SD is 4.37 | AD1: Understanding meaning of Confidence Interval | AQ1: Free download from http://aksharait.com
B2: This experiment explains the meaning of confidence level. If sample of 24 balls selected then what is the probability of having the average in the range of true mean of population (μ) "δ (here 250 "δ). This probability means the confidence level. This probability calculated using cumulative normal probability distribution function. Repeat the expriment by changing the value of δ ( Cell AU19)
S3: INDEX | V3: Max | Z3: 262.43
V4: Avg | Z4: 250.07
V5: Min | Z5: 238.6 | AN5: Sample
AN12: Population
AN13: μ | AU13: 250.07
B14: Repeat Expriment | AN14: σ | AU14: 4.37
AN15: As Per CLT
AN16: Sample size | AU16: 24
B17: Break | AN17: Sample Mean Std Dev σs | AU17: =AU14/SQRT(AU16) -> 0.8920225147
AN18: Confidance Level Calculations
AN19: Req. Confidence Int δ | AU19: 0.8
AN20: Sample Avg σs - Int | AU20: =AU13-AU19 -> 249.27
AN21: Sample Avg σs + Int | AU21: =AU13+AU19 -> 250.87
AN22: CumDst Avg-Int | AU22: =NORMDIST(AU20,AU13,AU17,TRUE) -> 0.1849025905
AN23: CumDst Avg+Int | AU23: =NORMDIST(AU21,AU13,AU17,TRUE) -> 0.8150974095
AN24: Confidence Level | AU24: =AU23-AU22 -> 0.630194819
B25: This Event Number (not trials) | H25: 62 | K25: Average of this event | Q25: 247.8063014 | T25: Counter for within interval | Z25: 39 | AC25: % of samples having average within specified range | AI25: =Z25/H25 -> 0.6290322581

Sheet PopulationData
A1: Normal Distributed Weight Values with μ = 250 σ2 = 20 | B1: μ - xi | C1: 8*(μ - xi) To color the balls in scale of " 100
A2: 249.8382697 | B2: =250-A2 -> 0.1617302951 | C2: =B2*8 -> 1.293842361
A3: 249.3720444 | B3: =250-A3 -> 0.6279556005 | C3: =B3*8 -> 5.023644804
A4: 253.1009323 | B4: -3.100932346 | C4: -24.80745877
A5: 248.9347942 | B5: 1.065205797 | C5: 8.521646374
A6: 252.6821876 | B6: -2.682187625 | C6: -21.457501
A7: 253.1691762 | B7: -3.169176242 | C7: -25.35340994
A8: 245.7988482 | B8: 4.201151785 | C8: 33.60921428
A9: 249.9709845 | B9: 0.02901553143 | C9: 0.2321242514
A10: 249.7625504 | B10: 0.237449645 | C10: 1.89959716
A11: 249.2630162 | B11: 0.7369837857 | C11: 5.895870286
A12: 250.0452435 | B12: -0.04524350673 | C12: -0.3619480539
A13: 250.7160147 | B13: -0.7160146786 | C13: -5.728117429
A14: 243.4465969 | B14: 6.553403099 | C14: 52.42722479
A15: 249.822955 | B15: 0.1770449602 | C15: 1.416359682
A16: 255.2881459 | B16: -5.288145881 | C16: -42.30516705
A17: 246.6700656 | B17: 3.329934356 | C17: 26.63947485
A18: 252.8947984 | B18: -2.894798401 | C18: -23.15838721
A19: 248.1966833 | B19: 1.803316682 | C19: 14.42653346
A20: 245.3947182 | B20: 4.605281815 | C20: 36.84225452
A21: 253.0915412 | B21: -3.0915412 | C21: -24.7323296 | H21: =26+21 -> 47
A22: 247.70172 | B22: 2.298280011 | C22: 18.38624009
A23: 247.2036592 | B23: 2.796340802 | C23: 22.37072642
A24: 249.4547237 | B24: 0.5452762971 | C24: 4.362210377
A25: 252.2484614 | B25: -2.248461402 | C25: -17.98769122
A26: 253.3434608 | B26: -3.343460766 | C26: -26.74768613
A27: 246.2216324 | B27: 3.778367602 | C27: 30.22694081
A28: 251.9621894 | B28: -1.962189429 | C28: -15.69751543
A29: 247.4619931 | B29: 2.538006856 | C29: 20.30405484
A30: 253.7569021 | B30: -3.756902111 | C30: -30.05521689
A31: 244.3372 | B31: 5.662799974 | C31: 45.30239979
A32: 247.5763508 | B32: 2.423649159 | C32: 19.38919327
A33: 251.3324457 | B33: -1.332445699 | C33: -10.65956559
A34: 246.1933712 | B34: 3.806628806 | C34: 30.45303044
A35: 253.7631764 | B35: -3.763176377 | C35: -30.10541102
A36: 247.2012133 | B36: 2.798786704 | C36: 22.39029363
A37: 255.9887147 | B37: -5.988714707 | C37: -47.90971766
A38: 249.9857897 | B38: 0.01421026837 | C38: 0.113682147
A39: 248.8019732 | B39: 1.198026848 | C39: 9.584214787
A40: 249.4437133 | B40: 0.5562866531 | C40: 4.450293225
A41: 253.8051264 | B41: -3.805126418 | C41: -30.44101135
A42: 255.1447984 | B42: -5.144798429 | C42: -41.15838743
A43: 244.198529 | B43: 5.801470967 | C43: 46.41176774
A44: 250.2546415 | B44: -0.2546414945 | C44: -2.037131956
A45: 245.1693435 | B45: 4.830656517 | C45: 38.64525213
A46: 250.6854763 | B46: -0.6854762597 | C46: -5.483810078
A47: 250.0563065 | B47: -0.05630652004 | C47: -0.4504521603
A48: 246.2238372 | B48: 3.776162804 | C48: 30.20930244
A49: 249.6528127 | B49: 0.3471873145 | C49: 2.777498516
A50: 249.0747235 | B50: 0.925276457 | C50: 7.402211656
A51: 248.1307335 | B51: 1.869266495 | C51: 14.95413196
A52: 240.8536753 | B52: 9.146324741 | C52: 73.17059793
A53: 245.5104218 | B53: 4.489578172 | C53: 35.91662538
A54: 260.1115173 | B54: -10.11151732 | C54: -80.89213855
A55: 247.1848552 | B55: 2.815144818 | C55: 22.52115855
A56: 247.6322211 | B56: 2.367778875 | C56: 18.942231
A57: 251.8152896 | B57: -1.81528958 | C57: -14.52231664
A58: 250.6329023 | B58: -0.6329022969 | C58: -5.063218375
A59: 246.8145638 | B59: 3.185436154 | C59: 25.48348923
A60: 250.1297532 | B60: -0.1297531735 | C60: -1.038025388
A61: 251.9759834 | B61: -1.975983384 | C61: -15.80786707
A62: 248.4962056 | B62: 1.5037944 | C62: 12.0303552
A63: 252.164912 | B63: -2.16491201 | C63: -17.31929608
A64: 257.2241921 | B64: -7.224192076 | C64: -57.79353661
A65: 255.3733243 | B65: -5.373324338 | C65: -42.9865947
A66: 246.911188 | B66: 3.088812005 | C66: 24.71049604
A67: 250.3798305 | B67: =250-A67 -> -0.3798305423 | C67: =B67*8 -> -3.038644339
A68: 253.3777016 | B68: -3.377701614 | C68: -27.02161291
A69: 249.8047108 | B69: 0.1952891839 | C69: 1.562313471
A70: 260.2060881 | B70: -10.20608806 | C70: -81.64870452
A71: 248.3599725 | B71: 1.640027538 | C71: 13.1202203
A72: 245.8326953 | B72: 4.167304658 | C72: 33.33843726
A73: 252.4726355 | B73: -2.47263548 | C73: -19.78108384
A74: 254.5710754 | B74: -4.571075445 | C74: -36.56860356
A75: 247.5994367 | B75: 2.400563348 | C75: 19.20450679
A76: 250.7072003 | B76: -0.7072002716 | C76: -5.657602173
A77: 243.548277 | B77: 6.451722986 | C77: 51.61378389
A78: 246.5440283 | B78: 3.455971655 | C78: 27.64777324
A79: 248.2831195 | B79: 1.716880508 | C79: 13.73504407
A80: 239.7557224 | B80: 10.24427755 | C80: 81.95422042
A81: 256.8380249 | B81: -6.838024881 | C81: -54.70419905
A82: 258.7970277 | B82: -8.79702774 | C82: -70.37622192
A83: 250.9281263 | B83: -0.9281262771 | C83: -7.425010216
A84: 248.2349792 | B84: 1.765020804 | C84: 14.12016643
A85: 243.5847003 | B85: 6.415299666 | C85: 51.32239732
A86: 256.3480179 | B86: -6.348017894 | C86: -50.78414315
A87: 252.0440048 | B87: -2.044004805 | C87: -16.35203844
A88: 251.2774757 | B88: -1.277475706 | C88: -10.21980565
A89: 250.6640571 | B89: -0.664057124 | C89: -5.312456992
A90: 258.9008686 | B90: -8.900868638 | C90: -71.2069491
A91: 252.6810459 | B91: -2.681045891 | C91: -21.44836713
A92: 248.2766605 | B92: 1.723339485 | C92: 13.78671588
A93: 246.7394719 | B93: 3.260528136 | C93: 26.08422509
A94: 246.4411691 | B94: 3.558830923 | C94: 28.47064738
A95: 247.4329515 | B95: 2.56704853 | C95: 20.53638824
A96: 243.7961077 | B96: 6.203892262 | C96: 49.6311381
A97: 250.6851387 | B97: -0.6851386644 | C97: -5.481109315
A98: 249.098876 | B98: 0.9011239893 | C98: 7.208991914
A99: 253.1972725 | B99: -3.197272459 | C99: -25.57817967
A100: 248.1071507 | B100: 1.892849261 | C100: 15.14279409
A101: 251.4451469 | B101: -1.445146877 | C101: -11.56117502
A102: 255.9978507 | B102: -5.99785074 | C102: -47.98280592
A103: 249.8631935 | B103: 0.1368065001 | C103: 1.094452001
A104: 247.7993445 | B104: 2.200655483 | C104: 17.60524387
A105: 255.8251109 | B105: -5.825110949 | C105: -46.60088759
A106: 241.9299905 | B106: 8.070009548 | C106: 64.56007638
A107: 245.51888 | B107: 4.481120016 | C107: 35.84896013
A108: 247.4508247 | B108: 2.54917534 | C108: 20.39340272
A109: 250.3664055 | B109: -0.3664055247 | C109: -2.931244198
A110: 253.2153678 | B110: -3.215367842 | C110: -25.72294273
A111: 245.5252462 | B111: 4.474753849 | C111: 35.7980308
A112: 242.1556636 | B112: 7.844336351 | C112: 62.75469081
A113: 256.593586 | B113: -6.593585966 | C113: -52.74868772
A114: 248.3394158 | B114: 1.660584177 | C114: 13.28467342
A115: 253.1070703 | B115: -3.107070287 | C115: -24.8565623
A116: 249.5182255 | B116: 0.481774468 | C116: 3.854195744
A117: 257.9992387 | B117: -7.999238746 | C117: -63.99390996
A118: 255.7199885 | B118: -5.719988497 | C118: -45.75990797
A119: 245.3517067 | B119: 4.648293295 | C119: 37.18634636
A120: 244.5654012 | B120: 5.43459875 | C120: 43.47679
A121: 252.436833 | B121: -2.436833027 | C121: -19.49466422
A122: 243.7559639 | B122: 6.244036051 | C122: 49.95228841
A123: 258.3174627 | B123: -8.317462702 | C123: -66.53970161
A124: 244.4401098 | B124: 5.559890192 | C124: 44.47912153
A125: 252.8726675 | B125: -2.872667459 | C125: -22.98133967
A126: 254.9148942 | B126: -4.914894249 | C126: -39.319154
A127: 252.9269813 | B127: -2.92698129 | C127: -23.41585032
A128: 251.9008299 | B128: -1.900829893 | C128: -15.20663915
A129: 249.256586 | B129: 0.7434139659 | C129: 5.947311727
A130: 251.4851576 | B130: -1.485157606 | C130: -11.88126084
A131: 243.4810825 | B131: =250-A131 -> 6.518917454 | C131: =B131*8 -> 52.15133963
A132: 241.8707347 | B132: 8.129265334 | C132: 65.03412267
A133: 251.481165 | B133: -1.481165041 | C133: -11.84932033
A134: 252.6122138 | B134: -2.6122138 | C134: -20.8977104
A135: 240.6966884 | B135: 9.303311621 | C135: 74.42649297
A136: 245.7647969 | B136: 4.235203081 | C136: 33.88162465
A137: 254.1846031 | B137: -4.184603125 | C137: -33.476825
A138: 246.0581139 | B138: 3.941886097 | C138: 31.53508877
A139: 249.0605543 | B139: 0.9394456924 | C139: 7.515565539
A140: 247.2783516 | B140: 2.721648444 | C140: 21.77318755
A141: 241.5888445 | B141: 8.411155547 | C141: 67.28924438
A142: 246.3050958 | B142: 3.694904207 | C142: 29.55923366
A143: 248.8028848 | B143: 1.1971152 | C143: 9.576921599
A144: 251.9873731 | B144: -1.987373096 | C144: -15.89898477
A145: 256.4133417 | B145: -6.4133417 | C145: -51.3067336
A146: 257.6448859 | B146: -7.644885894 | C146: -61.15908715
A147: 252.6419358 | B147: -2.641935798 | C147: -21.13548638
A148: 255.3307837 | B148: -5.33078368 | C148: -42.64626944
A149: 262.4299337 | B149: -12.42993368 | C149: -99.43946948
A150: 253.0500172 | B150: -3.050017228 | C150: -24.40013782
A151: 249.4157952 | B151: 0.5842048252 | C151: 4.673638602
A152: 254.7945379 | B152: -4.794537853 | C152: -38.35630283
A153: 247.6236348 | B153: 2.376365163 | C153: 19.0109213
A154: 249.4510658 | B154: 0.5489341992 | C154: 4.391473594
A155: 252.6197942 | B155: -2.619794214 | C155: -20.95835371
A156: 256.7260799 | B156: -6.726079868 | C156: -53.80863894
A157: 249.8810942 | B157: 0.1189057619 | C157: 0.9512460951
A158: 252.2602169 | B158: -2.260216886 | C158: -18.08173509
A159: 255.9758897 | B159: -5.975889732 | C159: -47.80711785
A160: 249.9823413 | B160: 0.01765865421 | C160: 0.1412692337
A161: 246.3725593 | B161: 3.627440742 | C161: 29.01952593
A162: 238.6005088 | B162: 11.39949118 | C162: 91.19592944
A163: 252.619472 | B163: -2.619472049 | C163: -20.95577639
A164: 256.9086009 | B164: -6.908600905 | C164: -55.26880724
A165: 247.6528274 | B165: 2.347172564 | C165: 18.77738051
A166: 251.6747783 | B166: -1.674778305 | C166: -13.39822644
A167: 253.0364777 | B167: -3.036477711 | C167: -24.29182169
A168: 249.1224164 | B168: 0.8775835502 | C168: 7.020668402
A169: 247.2712427 | B169: 2.728757263 | C169: 21.83005811
A170: 249.2954735 | B170: 0.7045265146 | C170: 5.636212117
A171: 246.6337547 | B171: 3.366245271 | C171: 26.92996217
A172: 244.1134372 | B172: 5.886562824 | C172: 47.09250259
A173: 248.6446101 | B173: 1.355389927 | C173: 10.84311941
A174: 255.9236199 | B174: -5.923619932 | C174: -47.38895945
A175: 249.7672612 | B175: 0.2327387684 | C175: 1.861910147
A176: 246.9447874 | B176: 3.055212568 | C176: 24.44170054
A177: 249.7263602 | B177: 0.2736397797 | C177: 2.189118238
A178: 249.6110495 | B178: 0.3889505398 | C178: 3.111604318
A179: 243.0660454 | B179: 6.933954641 | C179: 55.47163713
A180: 253.537073 | B180: -3.537073031 | C180: -28.29658424
A181: 246.4672814 | B181: 3.532718574 | C181: 28.26174859
A182: 247.5990192 | B182: 2.400980776 | C182: 19.20784621
A183: 250.3029927 | B183: -0.3029926987 | C183: -2.42394159
A184: 248.1213872 | B184: 1.878612767 | C184: 15.02890214
A185: 243.6806131 | B185: 6.31938692 | C185: 50.55509536
A186: 242.2983267 | B186: 7.701673308 | C186: 61.61338647
A187: 252.8748951 | B187: -2.874895062 | C187: -22.9991605
A188: 248.3535887 | B188: 1.646411264 | C188: 13.17129012
A189: 252.6133467 | B189: -2.61334673 | C189: -20.90677384
A190: 249.4488344 | B190: 0.5511655722 | C190: 4.409324578
A191: 252.3140919 | B191: -2.314091894 | C191: -18.51273515
A192: 245.8248493 | B192: 4.175150733 | C192: 33.40120586
A193: 255.4525818 | B193: -5.452581807 | C193: -43.62065446
A194: 247.3221414 | B194: 2.677858638 | C194: 21.4228691
A195: 251.9640431 | B195: =250-A195 -> -1.964043113 | C195: =B195*8 -> -15.7123449
A196: 253.541121 | B196: -3.541120981 | C196: -28.32896785
A197: 244.0290011 | B197: 5.970998874 | C197: 47.76799099
A198: 258.5959866 | B198: -8.595986567 | C198: -68.76789254
A199: 257.5871048 | B199: -7.58710477 | C199: -60.69683816
A200: 249.0907146 | B200: 0.9092854014 | C200: 7.274283211
... 189 more rows
